bitfinex/quotes_BTCUSD_20250324
["timestamp","ask_amount","ask_price","bid_price","bid_amount"]
[1742824448470,2.4e-07,87730.0,87729.0,0.48242813]
[1742824449879,2.4e-07,87730.0,87729.0,0.49142813]
[1742824451159,2.4e-07,87730.0,87729.0,0.48242813]
[1742824451364,2.4e-07,87730.0,87729.0,0.58742813]
[1742824451566,2.4e-07,87730.0,87729.0,0.59242813]
[1742824451967,2.4e-07,87730.0,87729.0,0.58742813]
[1742824452211,2.4e-07,87730.0,87729.0,0.59242813]
[1742824452438,2.4e-07,87730.0,87729.0,0.72938813]
[1742824453011,2.4e-07,87730.0,87729.0,0.46962964]
[1742824453217,2.4e-07,87730.0,87729.0,0.23025764]
[1742824453418,2.4e-07,87730.0,87729.0,0.60058964]
[1742824453889,0.23937024,87730.0,87729.0,0.36121764]
[1742824454068,0.25055654,87730.0,87729.0,0.36121764]
[1742824454328,0.25055654,87730.0,87729.0,0.35621764]
[1742824454532,0.25055654,87730.0,87729.0,0.22025764]
[1742824454757,0.63085654,87730.0,87729.0,0.1]
[1742824454967,0.78415554,87730.0,87729.0,0.1]
[1742824455168,0.78415554,87730.0,87729.0,0.103]
[1742824455368,0.78415554,87730.0,87729.0,0.106]
[1742824455778,0.78415554,87730.0,87729.0,0.103]
[1742824456194,0.78415554,87730.0,87729.0,0.1]
[1742824457386,0.95874954,87730.0,87729.0,0.1]
[1742824458466,0.81964154,87730.0,87729.0,0.11]
[1742824458690,0.81964154,87730.0,87729.0,0.1]
[1742824460035,0.82964154,87730.0,87729.0,0.1]
[1742824460702,0.64085654,87730.0,87729.0,0.1]
[1742824461092,0.64185654,87730.0,87729.0,0.1]
[1742824461520,0.64285654,87730.0,87729.0,0.1003388]
[1742824462953,0.74295654,87730.0,87729.0,0.1003388]
[1742824463159,0.95321754,87730.0,87729.0,0.1003388]
[1742824466293,0.86603554,87730.0,87729.0,0.1003388]
[1742824467710,0.64285654,87730.0,87729.0,0.1003388]
[1742824467904,1.12165754,87730.0,87729.0,0.1003388]
[1742824468136,0.97320554,87730.0,87729.0,0.1003388]
[1742824468768,0.79872254,87730.0,87729.0,0.1003388]
[1742824468982,0.56255654,87730.0,87729.0,0.11037268]
[1742824469186,0.56255654,87730.0,87729.0,0.1003388]
[1742824469807,0.92155654,87730.0,87729.0,0.1003388]
[1742824470888,0.56255654,87730.0,87729.0,0.1003388]
[1742824471313,0.25115854,87730.0,87729.0,0.21459644]
[1742824471537,0.55115854,87730.0,87729.0,0.25377049]
[1742824471738,0.55115854,87730.0,87729.0,0.21459644]
[1742824471938,0.56255654,87730.0,87729.0,0.21459644]
[1742824472147,0.02318654,87730.0,87729.0,0.21459644]
[1742824472357,0.3,87733.0,87732.0,0.011398]
[1742824472597,0.3,87733.0,87732.0,0.40399106]
[1742824472804,0.539362,87733.0,87730.0,0.00995376]
[1742824473016,0.239367,87731.0,87730.0,0.00995376]
[1742824474173,0.239367,87731.0,87730.0,0.00895376]
[1742824475062,0.239367,87731.0,87730.0,0.13991376]
[1742824475319,0.227966,87732.0,87730.0,0.13991376]
[1742824475555,0.3,87732.0,87731.0,0.22751528]
[1742824475729,0.539364,87732.0,87731.0,0.11425764]
[1742824476415,0.3,87732.0,87731.0,0.11425764]
[1742824476615,0.3,87732.0,87731.0,0.35362464]
[1742824476955,0.0001694,87733.0,87732.0,0.239364]
[1742824477161,0.0001694,87733.0,87732.0,0.35362164]
[1742824477449,0.0001694,87733.0,87732.0,0.46787928]
[1742824479632,0.0001694,87733.0,87732.0,0.35362164]
[1742824482658,0.0001694,87733.0,87732.0,0.48458164]
[1742824483886,0.0001694,87733.0,87732.0,0.48558164]
[1742824484624,0.0001694,87733.0,87732.0,0.11525764]
[1742824484830,0.0001694,87733.0,87732.0,0.48558164]
[1742824485036,0.0001694,87733.0,87732.0,0.48658164]
[1742824485900,0.0001694,87733.0,87732.0,0.60117808]
[1742824486374,0.0001694,87733.0,87732.0,0.48692044]
[1742824486750,0.0001694,87733.0,87732.0,0.24755644]
[1742824487148,0.2395314,87733.0,87732.0,0.24755644]
[1742824489438,0.5395314,87733.0,87732.0,0.0023388]
[1742824490504,0.5395314,87733.0,87732.0,0.0013388]
[1742824491131,0.55738011,87733.0,87732.0,0.0003388]
[1742824491616,0.55738011,87733.0,87732.0,8e-07]
[1742824493087,0.53937,87730.0,87729.0,6e-07]
[1742824493501,0.67495295,87730.0,87729.0,6e-07]
[1742824493711,0.005,87725.0,87699.0,0.54252]
[1742824493925,0.228091,87684.0,87682.0,0.0001695]
[1742824494130,0.239495,87684.0,87683.0,0.00046224]
[1742824494541,0.26082031,87684.0,87683.0,0.05477741]
[1742824494748,0.02132531,87684.0,87683.0,0.16903505]
[1742824495158,0.02132531,87684.0,87683.0,0.24967988]
[1742824495360,0.239493,87685.0,87683.0,0.24967988]
[1742824495563,0.239493,87685.0,87684.0,0.11425764]
[1742824497104,0.011404,87684.0,87683.0,0.13842224]
[1742824497304,0.011404,87684.0,87683.0,0.13442224]
[1742824497915,0.011404,87684.0,87683.0,0.13142224]
[1742824498315,0.011404,87684.0,87683.0,0.13442224]
[1742824500194,0.228089,87686.0,87683.0,0.28197453]
[1742824500387,0.228068,87694.0,87686.0,0.011404]
[1742824500582,0.0765,87717.0,87690.0,0.228075]
[1742824500583,0.01127436,87698.0,87690.0,0.228075]
[1742824500763,0.01127436,87698.0,87686.0,0.011404]
[1742824500764,0.228068,87693.0,87691.0,0.1530524]
[1742824500964,0.228091,87684.0,87682.0,0.0001695]
[1742824501149,0.239495,87684.0,87683.0,0.24867988]
[1742824501344,0.228091,87684.0,87683.0,0.24867988]
[1742824501922,0.228091,87684.0,87683.0,0.24567988]
[1742824502284,0.239495,87684.0,87683.0,0.13142224]
[1742824502491,0.539495,87684.0,87683.0,0.00046224]
[1742824502927,0.539495,87684.0,87683.0,0.00346224]
[1742824503306,0.228091,87684.0,87683.0,0.11771988]
[1742824503505,0.239495,87684.0,87683.0,0.11771988]
[1742824503934,0.239495,87684.0,87683.0,0.12071988]
[1742824504575,0.239495,87684.0,87683.0,0.11771988]
[1742824504724,0.240495,87684.0,87683.0,0.11771988]
[1742824504902,0.240495,87684.0,87683.0,0.11471988]
[1742824505548,0.240495,87684.0,87683.0,0.13444474]
[1742824505746,0.241495,87684.0,87683.0,0.11471988]
[1742824506746,0.002,87684.0,87683.0,0.19301988]
[1742824506910,0.002,87684.0,87683.0,0.43251788]
[1742824507110,0.001,87684.0,87683.0,0.48141788]
[1742824507310,0.001,87684.0,87683.0,0.61021637]
[1742824507917,0.228045,87702.0,87699.0,0.228051]
[1742824508117,0.228045,87702.0,87700.0,0.24525764]
[1742824508319,0.228047,87701.0,87700.0,0.24525764]
[1742824509636,0.228047,87701.0,87700.0,0.24625764]
[1742824509833,0.239449,87701.0,87700.0,0.24625764]
[1742824510037,0.239449,87701.0,87700.0,0.3187763]
[1742824510235,0.228045,87702.0,87700.0,0.3187763]
[1742824510450,0.228036,87706.0,87700.0,0.3301783]
[1742824510629,0.228037,87705.0,87700.0,0.3187763]
[1742824510828,0.228039,87705.0,87701.0,0.10491517]
[1742824511018,0.228039,87705.0,87702.0,0.24325764]
[1742824511222,0.228039,87705.0,87702.0,0.47130164]
[1742824511644,0.228039,87705.0,87703.0,0.228041]
[1742824511842,0.228039,87705.0,87704.0,0.11425764]
[1742824512047,0.003,87705.0,87704.0,0.11425764]
[1742824512268,0.231037,87705.0,87704.0,0.16619989]
[1742824512471,0.242438,87705.0,87704.0,0.16619989]
[1742824513023,0.26369738,87705.0,87704.0,0.16619989]
[1742824513467,0.011404,87686.0,87683.0,0.24191988]
[1742824513787,0.228082,87688.0,87684.0,0.24525764]
[1742824513984,0.239481,87689.0,87684.0,0.24525764]
[1742824514201,0.228086,87687.0,87684.0,0.24525764]
[1742824514405,0.239493,87685.0,87684.0,0.24525764]
[1742824515190,0.239493,87685.0,87684.0,0.25125764]
[1742824515390,0.228089,87685.0,87684.0,0.24725764]
[1742824515787,0.26078009,87685.0,87684.0,0.25125764]
[1742824516169,0.26078009,87685.0,87684.0,0.24925764]
[1742824516370,0.26078009,87685.0,87684.0,0.135]
[1742824516835,0.26078009,87685.0,87684.0,0.20281517]
[1742824517389,0.26078009,87685.0,87684.0,0.131]
[1742824517613,0.26078009,87685.0,87684.0,0.133]
[1742824517783,0.26078009,87685.0,87684.0,0.135]
[1742824518199,0.26078009,87685.0,87684.0,0.133]
[1742824518396,0.26078009,87685.0,87684.0,0.134]
[1742824519181,0.26078009,87685.0,87684.0,0.003]
[1742824519384,0.26078009,87685.0,87684.0,0.134]
[1742824519585,0.539493,87685.0,87684.0,0.134]
[1742824520815,0.539493,87685.0,87684.0,0.133]
[1742824521141,0.540493,87685.0,87684.0,0.133]
[1742824521346,0.540493,87685.0,87684.0,0.1313394]
[1742824521546,0.540493,87685.0,87684.0,0.1323394]
[1742824527462,0.540493,87685.0,87684.0,0.0013394]
[1742824529754,0.540493,87685.0,87664.0,0.54276]
[1742824529755,0.311407,87665.0,87664.0,0.54276]
[1742824529931,0.239602,87645.0,87642.0,0.0473]
[1742824530112,0.228193,87645.0,87644.0,0.78835644]
[1742824530319,0.228193,87645.0,87644.0,0.8109471]
[1742824530518,0.228193,87645.0,87644.0,0.91964345]
[1742824531142,0.228193,87645.0,87644.0,0.92464345]
[1742824531340,0.22828181,87645.0,87644.0,0.92464345]
[1742824531816,0.22828181,87645.0,87644.0,0.92764345]
[1742824533090,0.22828181,87645.0,87644.0,0.6879471]
[1742824533292,0.22828181,87645.0,87644.0,0.8189471]
[1742824539585,8.881e-05,87645.0,87644.0,0.8189471]
[1742824539791,0.011407,87658.0,87644.0,0.8189471]
[1742824539792,0.011404,87684.0,87666.0,0.0462]
[1742824539990,0.228117,87674.0,87673.0,0.11425764]
[1742824540170,0.228117,87674.0,87673.0,0.65713764]
[1742824540736,0.228117,87674.0,87673.0,0.67992805]
[1742824541959,0.228117,87674.0,87673.0,0.68292805]
[1742824542274,0.228115,87675.0,87673.0,0.68292805]
[1742824542476,0.228115,87675.0,87674.0,0.10793785]
[1742824542675,0.228115,87675.0,87674.0,0.22219549]
[1742824543333,0.23952,87675.0,87674.0,0.11425764]
[1742824543537,0.239522,87674.0,87673.0,0.54688]
[1742824543778,0.239522,87674.0,87673.0,0.67788]
[1742824544409,0.228117,87674.0,87673.0,0.67788]
[1742824544558,0.2382921,87674.0,87673.0,0.742668]
[1742824544760,0.2382921,87674.0,87673.0,0.610668]
[1742824545034,0.011404,87685.0,87674.0,0.001]
[1742824545239,0.011404,87685.0,87679.0,0.228104]
[1742824545240,0.00023069,87683.0,87679.0,0.228104]
[1742824545441,0.00023069,87683.0,87680.0,0.2252697]
[1742824545663,0.22832469,87683.0,87680.0,0.2252697]
[1742824545872,0.228099,87681.0,87680.0,0.2252697]
[1742824546078,0.00023069,87683.0,87680.0,0.2252697]
[1742824546284,0.00023069,87683.0,87682.0,0.2395]
[1742824546485,0.00023069,87683.0,87682.0,0.39666483]
[1742824547119,0.00023069,87683.0,87682.0,0.41120568]
[1742824547777,0.00023069,87683.0,87682.0,0.48770568]
[1742824549390,0.00023069,87683.0,87682.0,0.47916483]
[1742824549596,0.00023069,87683.0,87682.0,0.35975764]
[1742824549971,0.00023069,87683.0,87682.0,0.36275764]
[1742824550344,0.00023069,87683.0,87682.0,0.35975764]
[1742824550552,0.00023069,87683.0,87682.0,0.13766164]
[1742824550773,0.00023069,87683.0,87682.0,0.36575764]
[1742824551106,0.00023069,87683.0,87682.0,0.4272456]
[1742824551312,0.00023069,87683.0,87682.0,0.5612456]
[1742824551714,0.00023069,87683.0,87682.0,0.5552456]
[1742824552140,0.00023069,87683.0,87682.0,0.49175764]
[1742824555240,0.00023069,87683.0,87682.0,0.50629849]
[1742824556490,0.00023069,87683.0,87682.0,0.50625849]
[1742824556709,0.00023069,87683.0,87682.0,0.49171764]
[1742824557042,0.00023069,87683.0,87682.0,0.36075764]
[1742824557272,0.00023069,87683.0,87682.0,0.6043267]
[1742824559451,0.00023069,87683.0,87682.0,0.61886755]
[1742824560005,0.00023069,87683.0,87682.0,0.48031364]
[1742824560409,0.00023069,87683.0,87682.0,0.25221764]
[1742824561041,0.00023069,87683.0,87682.0,0.12125764]
[1742824561042,0.23972869,87683.0,87682.0,0.12125764]
[1742824561245,0.23972869,87683.0,87682.0,0.25221764]
[1742824562332,0.23972869,87683.0,87682.0,0.24821764]
[1742824562745,0.23972869,87683.0,87682.0,0.24521764]
[1742824563080,0.24172869,87683.0,87682.0,0.24521764]
[1742824563496,0.23972869,87683.0,87682.0,0.3153617]
[1742824563922,0.24172869,87683.0,87682.0,0.3153617]
[1742824564131,0.24172869,87683.0,87682.0,0.24521764]
[1742824564338,0.239522,87674.0,87673.0,0.0003396]
[1742824564879,0.539522,87674.0,87673.0,0.0003396]
[1742824566095,0.539522,87674.0,87673.0,0.0013396]
[1742824566295,0.539522,87674.0,87673.0,0.06884156]
[1742824566503,0.539522,87674.0,87673.0,0.0013396]
[1742824566708,0.55056253,87674.0,87673.0,0.0013396]
[1742824566911,0.55156253,87674.0,87673.0,0.0013396]
[1742824567572,0.540522,87674.0,87673.0,0.11559724]
[1742824568106,0.001,87674.0,87673.0,0.35512324]
[1742824568305,0.001,87674.0,87673.0,0.46028476]
[1742824568709,0.229117,87674.0,87673.0,0.22075876]
[1742824568919,0.001,87674.0,87673.0,0.22075876]
[1742824569486,0.001,87674.0,87673.0,0.46028476]
[1742824569929,0.001,87674.0,87673.0,0.35512324]
[1742824571233,0.240522,87674.0,87673.0,0.0013396]
[1742824571661,0.540522,87674.0,87673.0,0.0013396]
[1742824572835,0.539522,87674.0,87673.0,0.0013396]
[1742824573050,0.539572,87656.0,87655.0,0.131]
[1742824573740,0.539572,87656.0,87655.0,0.20071773]
[1742824574360,0.539572,87656.0,87655.0,0.13141104]
[1742824575308,0.539572,87656.0,87655.0,0.13241104]
[1742824576166,0.539572,87656.0,87655.0,0.00141104]
[1742824576329,0.620472,87656.0,87655.0,0.00141104]
[1742824576525,0.68513545,87656.0,87655.0,0.00141104]
[1742824576730,0.79939309,87656.0,87655.0,0.00141104]
[1742824576972,0.68513545,87656.0,87655.0,0.00141104]
[1742824577773,0.68513545,87656.0,87655.0,0.00041104]
[1742824578180,0.68713545,87656.0,87655.0,0.00041104]
[1742824578599,0.68913545,87656.0,87655.0,0.00041104]
[1742824578994,0.56143545,87656.0,87655.0,0.00041104]
[1742824579208,0.55943545,87656.0,87655.0,0.00041104]
[1742824579712,0.56343545,87656.0,87655.0,0.00041104]
[1742824579972,0.32386345,87656.0,87655.0,0.00041104]
[1742824580212,0.006,87656.0,87655.0,0.36966648]
[1742824580610,0.006,87656.0,87655.0,0.35825848]
[1742824580809,0.006,87656.0,87655.0,0.11466868]
[1742824581037,0.004,87656.0,87655.0,0.11466868]
[1742824581419,0.004,87656.0,87655.0,0.34383568]
[1742824581558,0.004,87656.0,87655.0,0.34283568]
[1742824581774,0.22816,87658.0,87655.0,0.34317528]
[1742824581981,0.228159,87660.0,87657.0,0.228161]
[1742824582208,0.228156,87660.0,87658.0,0.11425764]
[1742824582422,0.0178623,87676.0,87665.0,0.011407]
[1742824582634,0.011405,87674.0,87666.0,0.12566364]
[1742824582868,0.3,87671.0,87668.0,0.228133]
[1742824583079,0.3,87671.0,87669.0,0.11425764]
[1742824583281,0.528125,87671.0,87669.0,0.11425764]
[1742824583703,0.3,87671.0,87669.0,0.11425764]
[1742824583923,0.3,87671.0,87670.0,0.131]
[1742824584120,0.239532,87671.0,87670.0,0.24525764]
[1742824584331,0.528126,87671.0,87670.0,0.24525764]
[1742824585282,0.003,87671.0,87670.0,0.55921069]
[1742824585701,0.002,87671.0,87670.0,0.55921069]
[1742824586108,0.005,87671.0,87670.0,0.55921069]
[1742824586316,0.003,87671.0,87670.0,0.55921069]
[1742824586522,0.0001698,87673.0,87672.0,0.239529]
[1742824586722,0.0001698,87673.0,87672.0,0.35378664]
[1742824588483,0.0011698,87673.0,87672.0,0.35378664]
[1742824588887,0.0001698,87673.0,87672.0,0.35378664]
[1742824589098,0.0001698,87673.0,87672.0,0.35578664]
[1742824589438,0.0001698,87673.0,87672.0,0.47004428]
[1742824589644,0.0001698,87673.0,87672.0,0.47104428]
[1742824590839,0.0001698,87673.0,87672.0,0.24825764]
[1742824591044,0.0001698,87673.0,87672.0,0.11725764]
[1742824591246,0.0001698,87673.0,87672.0,0.24825764]
[1742824591375,0.0001698,87673.0,87672.0,0.47638064]
[1742824591585,0.0001698,87673.0,87672.0,0.48778664]
[1742824591786,0.0001698,87673.0,87672.0,0.24825764]
[1742824592413,0.2396958,87673.0,87672.0,0.134]
[1742824592609,0.3001698,87673.0,87672.0,0.134]
[1742824592813,0.5396958,87673.0,87672.0,0.134]
[1742824593225,0.5396958,87673.0,87672.0,0.1953088]
[1742824593226,0.3001698,87673.0,87672.0,0.1953088]
[1742824593426,0.3001698,87673.0,87672.0,0.54909544]
[1742824593921,0.0001698,87673.0,87672.0,0.54909544]
[1742824594337,0.0001698,87673.0,87672.0,0.56363629]
[1742824594699,0.0001698,87673.0,87672.0,0.64497589]
[1742824595153,8e-07,87673.0,87672.0,0.64397589]
[1742824595360,8e-07,87673.0,87672.0,0.64197589]
[1742824595593,8e-07,87673.0,87672.0,0.94297589]
[1742824595752,8e-07,87673.0,87672.0,0.94597589]
[1742824596127,8e-07,87673.0,87672.0,0.94497589]
[1742824596526,8e-07,87673.0,87672.0,0.95097589]
[1742824597355,8e-07,87673.0,87672.0,0.94297589]
[1742824597757,6e-07,87683.0,87682.0,0.37954085]
[1742824597995,6e-07,87683.0,87682.0,0.49379849]
[1742824598200,6e-07,87683.0,87682.0,0.79379849]
[1742824599126,0.0010006,87683.0,87682.0,0.79679849]
[1742824599562,6e-07,87683.0,87682.0,0.79679849]
[1742824599772,6e-07,87683.0,87682.0,0.92205613]
[1742824599981,0.02,87707.0,87701.0,0.364149]
[1742824600192,0.02,87707.0,87701.0,1.16666749]
[1742824601806,0.02,87707.0,87701.0,1.18988713]
[1742824602007,0.02,87707.0,87701.0,1.19288713]
[1742824602235,0.02,87707.0,87701.0,1.23426665]
[1742824602885,0.02,87707.0,87701.0,1.23726665]
[1742824603101,7e-07,87707.0,87706.0,0.239435]
[1742824603301,7e-07,87707.0,87706.0,0.44803349]
[1742824604360,7e-07,87707.0,87706.0,0.45303349]
[1742824604515,7e-07,87707.0,87706.0,0.51434229]
[1742824605147,0.0010007,87707.0,87706.0,0.51934229]
[1742824605357,0.0010007,87707.0,87706.0,0.51434229]
[1742824606005,0.0010007,87707.0,87706.0,0.52034229]
[1742824606429,0.0010007,87707.0,87706.0,0.64530229]
[1742824606559,0.0010007,87707.0,87706.0,0.65130229]
[1742824607636,0.0011705,87707.0,87706.0,0.65130229]
[1742824612493,5e-07,87707.0,87706.0,0.65130229]
[1742824612695,5e-07,87707.0,87706.0,0.95130229]
[1742824615577,5e-07,87707.0,87706.0,0.82034229]
[1742824615830,5e-07,87707.0,87706.0,0.65122229]
[1742824616214,5e-07,87707.0,87706.0,0.95122229]
[1742824617151,5e-07,87707.0,87706.0,0.87142229]
[1742824617777,5e-07,87707.0,87706.0,0.57142229]
[1742824618134,5e-07,87707.0,87706.0,1.11390229]
[1742824623696,5e-07,87707.0,87706.0,1.41390229]
[1742824623994,5e-07,87707.0,87706.0,1.44897737]
[1742824624585,5e-07,87707.0,87706.0,1.52767737]
[1742824632495,5e-07,87707.0,87706.0,1.52801677]
[1742824634184,0.0003392,87737.0,87732.0,0.25390485]
[1742824634185,8e-07,87737.0,87732.0,0.25390485]
[1742824634404,8e-07,87737.0,87736.0,0.36815149]
[1742824634607,0.00012273,87737.0,87736.0,0.36815149]
[1742824634807,0.00012273,87737.0,87736.0,0.40322657]
[1742824636730,0.00012273,87737.0,87736.0,0.40822657]
[1742824636899,0.00012273,87737.0,87736.0,0.52248421]
[1742824637100,0.00012273,87737.0,87736.0,0.53392387]
[1742824638710,0.00012273,87737.0,87736.0,0.53792387]
[1742824640004,0.00012273,87737.0,87736.0,0.53292387]
[1742824640204,0.00012273,87737.0,87736.0,0.52892387]
[1742824640421,0.00012273,87737.0,87736.0,0.53492387]
[1742824640547,0.0003392,87751.0,87750.0,0.239316]
[1742824640753,0.0003392,87751.0,87750.0,0.54037401]
[1742824641162,0.002,87769.0,87760.0,0.3]
[1742824641360,6e-07,87790.0,87789.0,0.239208]
[1742824641565,6e-07,87790.0,87789.0,1.04120649]
[1742824641772,6e-07,87790.0,87789.0,1.12486989]
[1742824642006,0.00041143,87790.0,87789.0,1.12486989]
[1742824642361,4.3e-07,87790.0,87789.0,1.12486989]
[1742824644221,4.3e-07,87790.0,87789.0,1.13086989]
[1742824644414,4.3e-07,87790.0,87789.0,1.13286989]
[1742824645012,4.3e-07,87790.0,87789.0,1.13086989]
[1742824645389,4.3e-07,87790.0,87789.0,1.13586989]
[1742824646364,7.318e-05,87795.0,87794.0,0.239196]
[1742824646603,0.00019635,87795.0,87794.0,0.46771128]
[1742824646783,0.00019635,87795.0,87794.0,0.35345364]
[1742824646994,0.00019635,87795.0,87794.0,0.24505764]
[1742824647222,0.00019635,87795.0,87794.0,0.25644764]
[1742824647593,0.00019635,87795.0,87794.0,0.26044764]
[1742824647788,0.00019635,87795.0,87794.0,0.24905764]
[1742824648169,0.00019635,87795.0,87794.0,0.1348]
[1742824648602,0.00019635,87795.0,87794.0,0.1388]
[1742824649003,0.00019635,87795.0,87794.0,0.008]
[1742824649223,0.00019635,87795.0,87794.0,0.1388]
[1742824649788,0.00019635,87795.0,87794.0,0.1348]
[1742824650003,0.00019635,87795.0,87794.0,0.1308]
[1742824650246,0.00019635,87795.0,87794.0,0.14319]
[1742824650464,0.00019635,87795.0,87794.0,0.14519]
[1742824650782,0.00019635,87795.0,87794.0,0.14419]
[1742824651237,0.00019635,87795.0,87794.0,0.1328]
[1742824651888,0.00019635,87795.0,87794.0,0.1338]
[1742824652291,0.00019635,87795.0,87794.0,0.14519]
[1742824652443,0.00019635,87795.0,87794.0,0.3566359]
[1742824654454,0.00019635,87795.0,87794.0,0.3556359]
[1742824654661,0.00019635,87795.0,87794.0,0.3536359]
[1742824654853,0.00019635,87795.0,87794.0,0.3556359]
[1742824655059,0.00019635,87795.0,87794.0,0.3596359]
[1742824655960,0.00019635,87795.0,87794.0,0.49055264]
[1742824656540,0.00019635,87795.0,87794.0,0.48855264]
[1742824656843,0.00019635,87795.0,87794.0,0.35040264]
[1742824657019,0.00019635,87795.0,87794.0,0.49255264]
[1742824658103,0.00019635,87795.0,87794.0,0.48855264]
[1742824658313,0.00019635,87795.0,87794.0,0.60081028]
[1742824658836,0.00019635,87795.0,87794.0,0.48855264]
[1742824664209,0.00019635,87795.0,87794.0,1.03059264]
[1742824667281,0.00019635,87795.0,87794.0,1.02659264]
[1742824667418,0.00019635,87795.0,87794.0,1.02859264]
[1742824668067,0.00019635,87795.0,87794.0,1.02959264]
[1742824668260,0.00019635,87795.0,87794.0,1.14385028]
[1742824669047,0.00019635,87795.0,87794.0,1.14785028]
[1742824669956,0.00019635,87795.0,87794.0,1.14485028]
[1742824670395,0.00019635,87795.0,87794.0,1.14885028]
[1742824670604,0.00019635,87795.0,87794.0,1.03459264]
[1742824670799,0.00019635,87795.0,87794.0,1.02659264]
[1742824671246,0.00019635,87795.0,87794.0,1.03659264]
[1742824675735,0.00019635,87795.0,87794.0,1.0717643]
[1742824675937,0.00019635,87795.0,87794.0,1.18602194]
[1742824677814,0.00019635,87795.0,87794.0,1.0717243]
[1742824678078,0.00019635,87795.0,87794.0,1.03655264]
[1742824678639,0.00019635,87795.0,87794.0,0.90583264]
[1742824678834,0.00019635,87795.0,87794.0,1.03655264]
[1742824681431,0.00019635,87795.0,87794.0,1.07173005]
[1742824682634,0.00019635,87795.0,87794.0,1.03655264]
[1742824683039,0.00019635,87795.0,87794.0,1.15081028]
[1742824683355,0.00019635,87795.0,87794.0,1.18597486]
[1742824683571,0.00019635,87795.0,87794.0,1.15081028]
[1742824683854,0.00019635,87795.0,87794.0,1.4859737]
[1742824685144,0.00019635,87795.0,87794.0,1.50051455]
[1742824686190,0.00019635,87795.0,87794.0,1.36979455]
[1742824686365,0.00019635,87795.0,87794.0,1.50051455]
[1742824688265,0.00019635,87795.0,87794.0,1.20051455]
[1742824689786,0.00019635,87795.0,87794.0,1.0552537]
[1742824689943,0.00019635,87795.0,87794.0,1.07171606]
[1742824690145,0.00019635,87795.0,87794.0,1.17216236]
[1742824690545,0.00019635,87795.0,87794.0,1.13699894]
[1742824690748,0.00019635,87795.0,87794.0,1.00627894]
[1742824690947,0.00019635,87795.0,87794.0,1.13699894]
[1742824691154,0.00019635,87795.0,87794.0,1.25125658]
[1742824691958,0.00019635,87795.0,87794.0,1.13699894]
[1742824692632,0.00019635,87795.0,87794.0,1.15153979]
[1742824693594,0.00019635,87795.0,87794.0,1.05109349]
[1742824693960,0.00019635,87795.0,87794.0,1.0862554]
[1742824694165,0.00019635,87795.0,87794.0,1.1642554]
[1742824694517,0.00019635,87795.0,87794.0,1.27851304]
[1742824695560,0.00019635,87795.0,87794.0,1.26851304]
[1742824695768,3.5e-07,87799.0,87798.0,0.227795]
[1742824695996,3.5e-07,87799.0,87798.0,0.40542157]
[1742824696169,3.5e-07,87799.0,87798.0,0.51740204]
[1742824696611,0.0001697,87825.0,87824.0,0.239114]
[1742824696732,0.002,87829.0,87828.0,0.239102]
[1742824696953,0.002,87829.0,87828.0,0.35335964]
[1742824697228,0.002,87829.0,87828.0,0.48407964]
[1742824697354,0.00212308,87829.0,87828.0,0.48407964]
[1742824697562,0.00212308,87829.0,87828.0,0.54538844]
[1742824697783,0.00212308,87829.0,87828.0,0.56795628]
[1742824698659,0.00212308,87829.0,87828.0,0.50964748]
[1742824698863,0.00212308,87829.0,87828.0,0.25193764]
[1742824699071,0.00212308,87829.0,87828.0,0.49103964]
[1742824700090,0.00212308,87829.0,87828.0,0.36035964]
[1742824700265,0.00212308,87829.0,87828.0,0.49103964]
[1742824700468,0.00212308,87829.0,87828.0,0.25193764]
[1742824701323,0.24122308,87829.0,87828.0,0.13468]
[1742824701531,0.00212308,87829.0,87828.0,0.48403964]
[1742824701701,0.00212308,87829.0,87828.0,0.49103964]
[1742824701906,0.00212308,87829.0,87828.0,0.25193764]
[1742824702087,0.22983808,87829.0,87828.0,0.25193764]
[1742824702283,0.24122308,87829.0,87828.0,0.13768]
[1742824702490,0.24122308,87829.0,87828.0,0.007]
[1742824702696,0.24122308,87829.0,87828.0,0.13768]
[1742824702697,0.22983808,87829.0,87828.0,0.13768]
[1742824702887,0.00212308,87829.0,87828.0,0.47965464]
[1742824703321,0.00229258,87829.0,87828.0,0.47965464]
[1742824703923,0.00229258,87829.0,87828.0,0.25193764]
[1742824704709,0.00229258,87829.0,87828.0,0.47965464]
[1742824705472,0.23000758,87829.0,87828.0,0.25193764]
[1742824705616,0.00229258,87829.0,87828.0,0.25193764]
[1742824706220,0.00229258,87829.0,87828.0,0.13768]
[1742824706504,0.24139258,87829.0,87828.0,0.13768]
[1742824706707,0.54139258,87829.0,87828.0,0.13768]
[1742824706978,0.62449258,87829.0,87828.0,0.13768]
[1742824707177,0.73875022,87829.0,87828.0,0.007]
[1742824707688,0.6331021,87829.0,87828.0,0.007]
[1742824708120,0.9440751,87829.0,87828.0,0.007]
[1742824708527,0.9910751,87829.0,87828.0,0.007]
[1742824708954,0.6979311,87829.0,87828.0,0.007]
[1742824709534,0.6979311,87829.0,87813.0,0.13068]
[1742824709535,0.227746,87817.0,87813.0,0.13068]
[1742824709692,0.239161,87807.0,87802.0,0.227785]
[1742824709889,0.227769,87808.0,87806.0,0.24493764]
[1742824710096,0.227764,87810.0,87806.0,0.24493764]
[1742824710293,0.227772,87807.0,87806.0,0.24493764]
[1742824710493,0.22777,87808.0,87806.0,0.24493764]
[1742824710693,0.227764,87810.0,87806.0,0.13068]
[1742824710907,0.23916,87807.0,87806.0,0.13068]
[1742824711571,0.239152,87810.0,87806.0,0.13068]
[1742824711857,0.22777,87808.0,87806.0,0.13068]
[1742824712052,0.227772,87807.0,87806.0,0.13068]
[1742824712204,0.227772,87808.0,87806.0,0.13068]
[1742824712553,0.23916,87807.0,87806.0,0.13368]
[1742824712748,0.227773,87807.0,87806.0,0.13068]
[1742824712950,0.227773,87807.0,87806.0,0.13268]
[1742824713131,0.227773,87807.0,87806.0,0.13568]
[1742824713332,0.23908874,87807.0,87806.0,0.005]
[1742824713505,0.25047674,87807.0,87806.0,0.13568]
[1742824713911,0.011388,87811.0,87806.0,0.13568]
[1742824713912,0.011387,87817.0,87810.0,0.227763]
[1742824714113,0.23914,87815.0,87811.0,0.11425764]
[1742824714318,0.227749,87816.0,87811.0,0.11425764]
[1742824714520,0.227751,87815.0,87811.0,0.11425764]
[1742824714726,0.227756,87814.0,87811.0,0.11425764]
[1742824715325,0.227758,87813.0,87811.0,0.11525764]
[1742824715754,0.227759,87812.0,87811.0,0.001]
[1742824715947,0.239146,87812.0,87811.0,0.004]